bitfinex/quotes_SOLUSD_20251019
["timestamp","ask_amount","ask_price","bid_price","bid_amount"]
[1760875387086,5.27819253,189.46,189.41,62.06]
[1760875387287,5.99819253,189.46,189.41,62.06]
[1760875387604,0.72,189.45,189.41,62.06]
[1760875388900,5.27819253,189.46,189.41,62.06]
[1760875389108,6.65826307,189.45,189.41,61.4]
[1760875389304,0.72,189.44,189.41,61.4]
[1760875389494,0.72,189.44,189.39,67.34010913]
[1760875390002,0.72,189.43,189.39,61.4]
[1760875390205,0.72,189.42,189.39,61.4]
[1760875390803,0.72,189.42,189.37,62.06]
[1760875391020,5.99940266,189.42,189.37,62.06]
[1760875391230,5.99940266,189.42,189.38,0.66]
[1760875391528,5.27940266,189.42,189.36,10.87647521]
[1760875391708,5.27940266,189.42,189.35,62.06]
[1760875391709,1.36994403,189.41,189.35,62.06]
[1760875392822,5.27983104,189.4,189.35,62.06]
[1760875393016,0.66001372,189.39,189.35,62.06]
[1760875393626,0.71,189.38,189.35,61.4]
[1760875393805,0.71,189.38,189.33,62.06]
[1760875394006,0.69,189.37,189.32,88.26]
[1760875394199,1.35001372,189.39,189.33,0.68]
[1760875394805,23.54001372,189.39,189.33,0.68]
[1760875395020,23.54001372,189.39,189.33,5.96177932]
[1760875395321,5.27983922,189.4,189.34,0.68]
[1760875395524,22.88,189.4,189.34,0.68]
[1760875395827,22.88,189.4,189.35,10.87647521]
[1760875396021,0.65990919,189.42,189.36,0.68]
[1760875396226,22.88,189.4,189.36,0.68]
[1760875396521,28.850109,189.4,189.36,0.68]
[1760875396715,1.35001372,189.39,189.34,61.4]
[1760875396920,28.160109,189.4,189.35,0.68]
[1760875397726,0.65983952,189.44,189.37,10.87647521]
[1760875397927,0.65983952,189.44,189.38,0.68]
[1760875398106,22.88,189.43,189.38,0.68]
[1760875398306,0.65990919,189.42,189.38,0.68]
[1760875398719,5.27927357,189.42,189.39,0.68]
[1760875399311,22.88,189.43,189.4,0.68]
[1760875399905,22.88,189.43,189.37,10.87647521]
[1760875399906,5.27782449,189.48,189.41,0.68]
[1760875400118,5.27732059,189.5,189.42,10.87647521]
[1760875400323,5.27732059,189.5,189.43,0.68]
[1760875400715,1.34966541,189.49,189.43,0.68]
[1760875400899,5.93695119,189.5,189.43,5.95894534]
[1760875401103,5.93695119,189.5,189.44,0.68]
[1760875401808,5.27732059,189.5,189.44,0.68]
[1760875402017,0.65966541,189.49,189.44,0.68]
[1760875402223,5.27732059,189.5,189.45,0.68]
[1760875402424,5.27732059,189.5,189.43,5.27898865]
[1760875402723,5.27732059,189.5,189.46,0.68]
[1760875403412,5.96732059,189.5,189.46,0.68]
[1760875403822,5.27732059,189.5,189.46,0.68]
[1760875404406,5.93638001,189.51,189.47,0.68]
[1760875404618,6.13607028,189.52,189.48,0.68]
[1760875404834,5.47650929,189.52,189.48,0.68]
[1760875405131,6.16650929,189.52,189.45,10.87647521]
[1760875405306,6.16650929,189.52,189.46,0.68]
[1760875405706,6.16650929,189.52,189.46,5.95815084]
[1760875406113,0.69,189.51,189.45,10.87647521]
[1760875406427,0.69,189.5,189.45,10.87647521]
[1760875406727,0.69,189.5,189.45,16.15491216]
[1760875406906,0.65959579,189.51,189.45,11.55647521]
[1760875407108,1.34959579,189.51,189.45,11.55647521]
[1760875407508,1.34959579,189.51,189.45,16.83490894]
[1760875407924,6.62653218,189.51,189.45,16.83490894]
[1760875408525,6.62653218,189.51,189.45,0.68]
[1760875409133,6.62653218,189.51,189.45,16.83488804]
[1760875409307,6.62653218,189.51,189.46,0.68]
[1760875409513,6.62653218,189.51,189.47,0.68]
[1760875410836,6.62653218,189.51,189.45,16.83488804]
[1760875411617,6.62653218,189.51,189.45,16.15488804]
[1760875411818,0.2,189.52,189.46,5.95815163]
[1760875412329,0.2,189.52,189.47,0.68]
[1760875412731,0.2,189.52,189.47,62.08]
[1760875413033,0.2,189.52,189.48,0.68]
[1760875413234,5.47650015,189.52,189.49,0.68]
[1760875416738,1.34959579,189.51,189.43,0.68]
[1760875417042,1.34959579,189.51,189.44,10.87647521]
[1760875417337,1.34959579,189.51,189.45,0.68]
[1760875418336,5.27704485,189.5,189.45,0.68]
[1760875418542,1.34966541,189.49,189.43,67.3589006]
[1760875418920,1.34966541,189.49,189.43,66.6789006]
[1760875419119,0.69,189.49,189.44,0.68]
[1760875419434,0.69,189.49,189.45,0.68]
[1760875419818,5.27734449,189.49,189.43,66.6789006]
[1760875420018,1.34970023,189.48,189.41,67.35930744]
[1760875420215,1.34970023,189.48,189.42,0.68]
[1760875421133,5.2778804,189.47,189.42,0.68]
[1760875421332,0.69,189.46,189.42,0.68]
[1760875421638,0.65976987,189.46,189.41,61.4]
[1760875421832,0.69,189.45,189.41,61.4]
[1760875422138,5.2778804,189.47,189.42,0.68]
[1760875422441,5.9678804,189.47,189.43,0.68]
[1760875422920,1.34976987,189.46,189.41,67.3595413]
[1760875423243,5.96843758,189.45,189.41,62.08]
[1760875423937,5.27843758,189.45,189.41,62.08]
[1760875424445,28.15815897,189.46,189.41,62.08]
[1760875424626,0.65980469,189.45,189.41,62.08]
[1760875424939,0.65980469,189.45,189.41,61.4]
[1760875425148,28.15815897,189.46,189.42,0.65]
[1760875425348,28.81792884,189.46,189.42,0.65]
[1760875425545,28.81792884,189.46,189.41,61.4]
[1760875425845,22.88,189.47,189.43,0.65]
[1760875426628,5.93757718,189.48,189.43,0.65]
[1760875427030,0.65970023,189.48,189.43,67.32899267]
[1760875427235,0.6596306,189.5,189.44,11.52647521]
[1760875427440,5.27677652,189.51,189.45,0.65]
[1760875427835,0.2,189.52,189.46,10.87647521]
[1760875428041,0.2,189.52,189.47,0.65]
[1760875428541,0.2,189.52,189.47,5.92776846]
[1760875428745,0.2,189.52,189.48,0.65]
[1760875429054,0.2,189.52,189.47,5.27776846]
[1760875429252,6.83615311,189.52,189.46,5.27812501]
[1760875429455,6.83615311,189.52,189.45,11.52647521]
[1760875429661,0.7,189.51,189.45,11.52647521]
[1760875430355,5.97694794,189.51,189.45,11.52647521]
[1760875430948,5.97694794,189.51,189.45,0.65]
[1760875431152,0.85956099,189.52,189.46,10.87647521]
[1760875431350,0.2,189.52,189.47,0.65]
[1760875431546,0.2,189.52,189.48,10.87647521]
[1760875431856,0.2,189.52,189.49,0.65]
[1760875432040,0.2,189.52,189.5,0.65]
[1760875432238,0.2,189.52,189.51,0.65]
[1760875432831,0.2,189.52,189.49,0.65]
[1760875433036,0.2,189.52,189.5,0.65]
[1760875433437,0.7,189.51,189.48,61.4]
[1760875433656,0.7,189.51,189.46,0.65]
[1760875434155,29.01605015,189.52,189.46,0.65]
[1760875434337,29.01605015,189.52,189.47,0.65]
[1760875434650,29.01605015,189.52,189.48,0.65]
[1760875434852,29.01605015,189.52,189.45,16.15474302]
[1760875435159,28.35648916,189.52,189.49,0.65]
[1760875435470,28.35648916,189.52,189.47,0.65]
[1760875435759,28.35648916,189.52,189.48,0.65]
[1760875436163,28.35648916,189.52,189.46,5.27813396]
[1760875436369,28.35648916,189.52,189.48,10.87647521]
[1760875436659,28.35648916,189.52,189.48,11.52647521]
[1760875436862,5.47648916,189.52,189.48,11.52647521]
[1760875437661,5.47648916,189.52,189.47,10.87647521]
[1760875437864,5.47648916,189.52,189.48,0.65]
[1760875438454,5.47648916,189.52,189.48,62.05]
[1760875438652,0.7,189.51,189.48,61.4]
[1760875438853,0.6596306,189.5,189.48,61.4]
[1760875439180,1.35959579,189.51,189.48,61.4]
[1760875439639,0.65959579,189.51,189.48,61.4]
[1760875440066,1.35959579,189.51,189.48,61.4]
[1760875440569,6.63659379,189.51,189.48,61.4]
[1760875441758,0.7,189.5,189.48,61.4]
[1760875442676,5.93659379,189.51,189.48,61.4]
[1760875442967,6.63659379,189.51,189.48,61.4]
[1760875443857,5.276998,189.51,189.48,62.05]
[1760875444264,5.276998,189.51,189.48,61.4]
[1760875444456,0.85956099,189.52,189.49,0.65]
[1760875444661,0.2,189.52,189.5,10.87647521]
[1760875444862,0.2,189.52,189.51,0.65]
[1760875445062,0.2,189.52,189.51,11.52647521]
[1760875446551,0.2,189.52,189.51,16.8032416]
[1760875447272,0.2,189.54,189.52,10.87647521]
[1760875447480,0.2,189.54,189.52,11.52647521]
[1760875447654,0.2,189.54,189.53,11.52647521]
[1760875447850,0.2,189.54,189.53,27.39470018]
[1760875448656,0.2,189.54,189.53,32.67090975]
[1760875449073,0.2,189.55,189.54,10.87647521]
[1760875449282,0.2,189.55,189.54,38.34647521]
[1760875449461,22.98,189.65,189.54,38.34647521]
[1760875449661,23.68,189.65,189.56,10.87647521]
[1760875449862,24.33910888,189.65,189.58,10.87647521]
[1760875450176,22.98,189.65,189.58,10.87647521]
[1760875450378,1.35914364,189.64,189.58,10.87647521]
[1760875450563,5.2737053,189.62,189.55,10.87647521]
[1760875450770,0.7,189.61,189.54,10.87647521]
[1760875450967,5.93291846,189.62,189.54,10.87647521]
[1760875450968,1.3592827,189.6,189.54,10.87647521]
[1760875451166,1.3592827,189.6,189.49,10.87647521]
[1760875451366,23.58,189.59,189.53,10.87647521]
[1760875451571,1.35935225,189.58,189.53,10.87647521]
[1760875451786,1.35935225,189.58,189.53,11.52647521]
[1760875452270,6.63424566,189.58,189.53,11.52647521]
[1760875452680,5.93424566,189.58,189.53,10.87647521]
[1760875452884,0.7,189.57,189.53,10.87647521]
[1760875453187,5.93424566,189.58,189.52,10.87647521]
[1760875453373,0.7,189.57,189.52,10.87647521]
[1760875453564,0.7,189.56,189.52,10.87647521]
[1760875453965,5.27489341,189.58,189.53,0.67]
[1760875454274,22.88,189.57,189.53,0.67]
[1760875454477,22.88,189.57,189.53,5.94618277]
[1760875454678,22.88,189.57,189.54,0.67]
[1760875454879,22.88,189.58,189.56,10.87647521]
[1760875455080,22.88,189.58,189.57,0.67]
[1760875455286,22.88,189.58,189.56,10.87647521]
[1760875455586,22.88,189.58,189.56,11.54647521]
[1760875455886,22.88,189.58,189.57,0.67]
[1760875456283,5.93293475,189.62,189.57,0.67]
[1760875456584,5.27372159,189.62,189.58,0.67]
[1760875456786,28.82372159,189.62,189.56,5.94525854]
[1760875456995,28.82372159,189.62,189.56,0.67]
[1760875457793,0.65924792,189.61,189.54,26.84]
[1760875458093,5.94451171,189.6,189.54,26.84]
[1760875458389,0.65931747,189.59,189.54,26.84]
[1760875458987,1.32931747,189.59,189.54,27.51]
[1760875459974,6.60386465,189.59,189.54,27.51]
[1760875460168,5.93386465,189.59,189.55,0.67]
[1760875461086,6.60386465,189.59,189.55,0.67]
[1760875462891,5.2742616,189.6,189.55,0.67]
[1760875463194,5.9442616,189.6,189.55,0.67]
[1760875463992,0.67,189.59,189.55,0.67]
[1760875464399,5.2742616,189.6,189.55,0.67]
[1760875464587,0.65931747,189.59,189.55,0.67]
[1760875464906,1.32931747,189.59,189.55,0.67]
[1760875465273,23.55,189.62,189.57,10.87647521]
[1760875465474,23.55,189.62,189.58,0.67]
[1760875465691,1.32924792,189.61,189.56,10.87647521]
[1760875465998,0.67,189.6,189.56,10.87647521]
[1760875466205,0.65924792,189.61,189.55,10.87647521]
[1760875466505,5.27409056,189.61,189.56,0.67]
[1760875466703,23.55,189.62,189.57,0.67]
[1760875466704,22.88,189.62,189.57,0.67]
[1760875467999,22.88,189.62,189.58,11.54647521]
[1760875468199,22.88,189.62,189.59,0.67]
[1760875469290,22.88,189.62,189.6,0.67]
[1760875469599,5.37303076,189.65,189.6,10.87647521]
[1760875469784,0.1,189.65,189.61,0.67]
[1760875469989,0.67,189.64,189.59,10.87647521]
[1760875470209,0.67,189.64,189.59,11.54647521]
[1760875470515,29.58200503,189.65,189.6,0.67]
[1760875471000,0.67,189.64,189.6,0.67]
[1760875471200,28.25289615,189.65,189.59,10.87647521]
[1760875471382,28.25289615,189.65,189.61,0.67]
[1760875471811,28.92289615,189.65,189.61,0.67]
[1760875472008,22.98,189.65,189.62,0.67]
[1760875472217,22.98,189.65,189.63,0.67]
[1760875472514,0.1,189.65,189.6,18.4599156]
[1760875472688,0.1,189.65,189.62,10.87647521]
[1760875473088,0.1,189.65,189.61,0.67]
[1760875473089,0.1,189.65,189.64,10.87647521]
[1760875473489,0.77,189.65,189.61,10.87647521]
[1760875473717,0.1,189.65,189.61,16.82041159]
[1760875474023,0.67,189.64,189.59,11.54647521]
[1760875474319,0.1,189.65,189.6,0.67]
[1760875474617,0.1,189.65,189.62,10.87647521]
[1760875475007,0.1,189.65,189.62,0.67]
[1760875475213,0.1,189.65,189.63,0.67]
[1760875475390,0.1,189.65,189.64,0.67]
[1760875476794,0.1,189.65,189.6,90.73639081]
[1760875477108,0.1,189.65,189.61,0.67]
[1760875477306,0.1,189.65,189.62,5.2737053]
[1760875477500,0.1,189.65,189.64,10.87647521]
[1760875478011,0.1,189.65,189.64,11.54647521]
[1760875479996,0.1,189.65,189.64,16.81962433]
[1760875480797,0.1,189.65,189.62,26.8]
[1760875481012,0.1,189.65,189.63,10.87647521]
[1760875481607,0.1,189.65,189.63,11.54647521]
[1760875482817,0.1,189.65,189.62,26.8]
[1760875483024,0.67,189.64,189.62,26.8]
[1760875483207,0.1,189.65,189.62,26.8]
[1760875483410,0.1,189.65,189.62,27.47]
[1760875484111,0.1,189.65,189.63,10.87647521]
[1760875484318,0.1,189.65,189.63,11.58647521]
[1760875484923,0.1,189.65,189.63,10.87647521]
[1760875485243,22.88,189.62,189.57,0.71]
[1760875485436,22.88,189.62,189.58,0.71]
[1760875485753,22.88,189.62,189.59,0.71]
[1760875486027,5.27345058,189.63,189.59,0.71]
[1760875486228,5.27345058,189.63,189.56,5.27515534]
[1760875486416,5.27345058,189.63,189.57,0.71]
[1760875486618,0.65921316,189.62,189.57,0.71]
[1760875486930,22.88,189.6,189.53,0.71]
[1760875487124,1.23931747,189.59,189.53,0.71]
[1760875487535,6.51403808,189.59,189.53,0.71]
[1760875488107,1.23931747,189.59,189.53,5.98618103]
[1760875488717,6.51389818,189.59,189.53,5.98618103]
[1760875489026,6.51389818,189.59,189.53,0.71]
[1760875489408,6.51389818,189.59,189.53,5.98618929]
[1760875490027,5.93389818,189.59,189.52,5.27647653]
[1760875490219,5.93389818,189.59,189.5,50.90866211]
[1760875490220,0.58,189.58,189.51,10.87647521]
[1760875490419,5.93389818,189.59,189.51,10.87647521]
[1760875490630,0.58,189.57,189.5,0.71]
[1760875490942,22.88,189.56,189.48,11.58647521]
[1760875491114,1.2394566,189.55,189.48,11.58647521]
[1760875491639,29.39536854,189.55,189.48,16.86398224]
[1760875493023,29.39536854,189.55,189.49,5.98729511]
[1760875493329,22.88,189.56,189.5,0.71]
[1760875493908,28.15539334,189.56,189.5,0.71]
[1760875494106,28.73539334,189.56,189.5,0.71]
[1760875494817,29.39481515,189.56,189.5,0.71]
[1760875495335,29.39481515,189.56,189.48,5.98759167]
[1760875495509,0.58,189.55,189.48,5.98759167]
[1760875495714,0.6594914,189.54,189.48,5.98759167]
[1760875496139,0.58,189.53,189.47,0.71]
[1760875496309,0.6594914,189.54,189.47,0.71]
[1760875496622,1.2394566,189.55,189.47,0.71]
[1760875497015,5.2759312,189.54,189.47,5.98780442]
[1760875497236,0.65952619,189.53,189.48,0.71]
[1760875497436,0.65952619,189.53,189.49,0.71]
[1760875497757,0.6594566,189.55,189.5,0.71]
[1760875498038,22.88,189.54,189.5,0.71]
[1760875498233,22.88,189.54,189.48,11.58647521]
[1760875498413,1.23952619,189.53,189.48,0.71]
[1760875498618,0.58,189.52,189.46,0.71]
[1760875499021,6.51587543,189.53,189.46,5.98809958]
[1760875499319,6.51587543,189.53,189.47,0.71]
[1760875500314,22.88,189.5,189.45,0.71]
[1760875500516,23.46,189.5,189.43,11.58647521]
[1760875501036,23.46,189.5,189.44,0.71]
[1760875501623,28.73718072,189.5,189.4,10.87647521]
[1760875501834,1.23966541,189.49,189.37,5.99062522]
[1760875502016,0.65966541,189.49,189.37,5.99062522]
[1760875502211,0.58,189.48,189.36,0.2]
[1760875502519,22.88,189.46,189.36,0.2]
[1760875502727,22.88,189.42,189.36,0.2]
[1760875502925,0.65994403,189.41,189.36,0.2]
[1760875503130,0.58,189.4,189.36,0.2]
[1760875503522,5.86006872,189.4,189.36,0.2]
[1760875503724,1.24001372,189.39,189.36,0.2]
[1760875504822,0.66001372,189.39,189.36,0.2]
[1760875505829,0.66001372,189.39,189.36,0.91]
[1760875506241,0.65997888,189.4,189.36,0.91]
[1760875506730,0.65997888,189.4,189.36,0.2]
[1760875506731,5.93988387,189.4,189.36,0.2]
[1760875507040,0.65997888,189.4,189.36,0.2]
[1760875507235,0.65997888,189.4,189.36,0.91]
[1760875508021,0.65997888,189.4,189.36,0.2]
[1760875508221,6.51984139,189.4,189.36,0.2]
[1760875508635,5.93984139,189.4,189.36,0.2]
[1760875508945,5.93984139,189.4,189.36,0.91]
[1760875509622,6.51984139,189.4,189.36,0.2]
[1760875510024,0.58,189.39,189.36,0.2]
[1760875511743,5.86015273,189.39,189.36,0.2]
[1760875512059,0.66004857,189.38,189.36,0.2]
[1760875514266,5.94016645,189.39,189.36,0.2]
[1760875514453,0.65997888,189.4,189.37,0.72]
[1760875514963,5.93981029,189.4,189.37,0.72]
[1760875515960,0.65980469,189.45,189.38,0.72]
[1760875516146,26.84,189.44,189.38,0.72]
[1760875516350,24.11987435,189.43,189.37,0.72]
[1760875517359,5.27927357,189.42,189.37,0.72]
[1760875517560,0.65994403,189.41,189.37,0.72]
[1760875517763,0.65994403,189.41,189.36,5.48092969]
[1760875518060,0.65994403,189.41,189.37,0.72]
[1760875518440,1.23994403,189.41,189.36,0.2]
[1760875518760,0.58,189.4,189.36,0.2]
[1760875518945,24.12001372,189.39,189.36,0.2]
[1760875519858,23.54001372,189.39,189.36,0.2]
[1760875520244,5.2798616,189.4,189.37,0.72]
[1760875520440,5.93984048,189.4,189.38,0.72]
[1760875520663,5.93984048,189.4,189.36,0.92]
[1760875521543,6.51984048,189.4,189.36,0.2]
[1760875522163,0.58,189.39,189.36,0.2]
[1760875522845,32.77984048,189.4,189.36,0.2]
[1760875523345,0.58,189.39,189.36,0.2]
[1760875523546,0.66004857,189.38,189.36,0.2]
[1760875524566,6.52039375,189.39,189.36,0.2]
[1760875524766,22.88,189.37,189.36,0.2]
[1760875524960,50.36008343,189.37,189.36,0.2]
[1760875525157,50.94008343,189.37,189.36,0.2]
[1760875525363,1.24008343,189.37,189.36,0.2]
[1760875525551,50.38008343,189.37,189.36,0.2]
[1760875525751,50.96008343,189.37,189.36,0.2]
[1760875526149,24.12008343,189.37,189.36,0.2]
[1760875526358,50.96008343,189.37,189.36,0.2]
[1760875526562,56.2407509,189.37,189.36,0.2]
[1760875528691,29.4007509,189.37,189.36,0.2]
[1760875528978,56.2407509,189.37,189.36,0.2]
[1760875530269,55.6607509,189.37,189.36,0.2]
[1760875531155,0.66008343,189.37,189.36,0.2]
[1760875531353,22.88,189.37,189.36,0.92]
[1760875532175,28.16066747,189.37,189.36,0.2]
[1760875533471,22.88,189.37,189.36,0.2]
[1760875533652,49.72,189.37,189.36,0.2]
[1760875533847,22.88,189.37,189.36,0.92]
[1760875537375,6.15990064,189.45,189.36,0.92]
[1760875537582,27.42,189.44,189.37,0.72]
[1760875537764,22.88,189.41,189.37,0.72]
[1760875538170,22.88,189.41,189.38,0.72]
[1760875538481,0.65987435,189.43,189.39,0.72]
[1760875538778,0.65983952,189.44,189.39,0.72]
[1760875538955,22.88,189.43,189.39,0.72]
[1760875539280,0.65983952,189.44,189.39,0.72]
[1760875539577,22.88,189.41,189.36,61.6]
[1760875539774,0.65997888,189.4,189.36,61.6]
[1760875540083,0.65997888,189.4,189.37,0.72]
[1760875540859,0.65997888,189.4,189.36,61.6]
[1760875541065,22.88,189.41,189.38,0.72]
[1760875541376,0.65990919,189.42,189.39,0.72]
[1760875541576,54.9990126,189.43,189.4,0.72]
[1760875541782,0.65990919,189.42,189.38,0.72]
[1760875541955,1.23990919,189.42,189.37,0.72]
[1760875542362,0.58,189.41,189.36,0.2]
[1760875542583,0.58,189.41,189.36,0.92]
[1760875542885,28.15996407,189.4,189.36,0.92]
[1760875543181,28.81994295,189.4,189.36,0.92]
[1760875543776,28.81994295,189.4,189.37,0.72]
[1760875543977,22.88,189.41,189.38,0.67]
[1760875544372,22.88,189.41,189.36,5.48090491]
[1760875544577,22.88,189.41,189.38,0.67]
[1760875545086,26.84,189.45,189.39,5.95002509]
[1760875545283,0.65983952,189.44,189.4,0.67]
[1760875545475,27.49980469,189.45,189.4,0.67]
[1760875545787,0.65980469,189.45,189.41,0.67]
[1760875546158,0.65980469,189.45,189.42,0.67]
[1760875546363,5.93836342,189.45,189.42,0.67]
[1760875546587,5.93836342,189.45,189.4,0.67]
[1760875546888,5.93836342,189.45,189.41,0.67]
[1760875547261,28.81793918,189.46,189.42,0.67]
[1760875547465,5.93751166,189.48,189.42,0.67]
[1760875548062,0.65970023,189.48,189.42,5.94906842]
[1760875548263,0.65970023,189.48,189.43,0.67]
[1760875548475,5.9373047,189.48,189.44,0.67]
[1760875550963,0.58,189.47,189.42,61.4]
[1760875551378,0.58,189.47,189.43,0.67]
[1760875551573,0.65976987,189.46,189.42,61.4]
[1760875552089,0.65976987,189.46,189.43,0.67]
[1760875552290,0.65973505,189.47,189.44,0.67]
[1760875553275,0.65973505,189.47,189.45,0.67]
[1760875553675,0.65973505,189.47,189.43,0.67]
[1760875553865,0.65973505,189.47,189.44,0.67]
[1760875554691,0.65973505,189.47,189.4,5.27983104]
[1760875554879,0.65973505,189.47,189.41,0.67]
[1760875556069,0.65973505,189.47,189.42,5.27927357]
[1760875556268,0.65973505,189.47,189.43,0.67]
[1760875556464,5.9373047,189.48,189.44,0.67]
[1760875556663,0.65966541,189.49,189.44,0.67]
[1760875557884,49.7,189.5,189.44,0.67]
[1760875558082,50.3596306,189.5,189.45,5.27843758]
[1760875558287,50.3596306,189.5,189.46,0.67]
[1760875558485,50.3596306,189.5,189.47,0.67]
[1760875559574,54.97708806,189.5,189.45,0.67]
[1760875559784,0.65966541,189.49,189.46,0.67]
[1760875561900,0.65966541,189.49,189.43,16.15547008]
[1760875562104,0.58,189.48,189.43,0.67]
[1760875562276,5.93712122,189.49,189.44,0.67]
[1760875562580,6.51712122,189.49,189.42,61.4]
[1760875562789,5.93712122,189.49,189.45,0.67]
[1760875563022,5.93712122,189.49,189.42,66.67926979]
[1760875563023,5.93712122,189.49,189.46,0.67]
[1760875563295,0.65966541,189.49,189.43,10.87647521]
[1760875563515,23.53952619,189.53,189.47,0.67]
[1760875563674,8.07115144,189.56,189.48,10.87647521]
[1760875563675,5.27593168,189.54,189.48,10.87647521]
[1760875563878,5.27593168,189.54,189.49,0.67]
[1760875564077,0.6594566,189.55,189.5,10.87647521]
[1760875564297,1.23931747,189.59,189.51,0.67]
[1760875564500,22.88,189.58,189.51,0.67]
[1760875564681,23.53935225,189.58,189.52,10.87647521]
[1760875564884,23.53935225,189.58,189.53,0.67]
[1760875565193,22.88,189.58,189.53,0.67]
[1760875565580,5.27424737,189.61,189.53,0.67]
[1760875565895,0.6592827,189.6,189.54,10.87647521]
[1760875566096,0.6592827,189.6,189.55,0.67]
[1760875566283,22.88,189.61,189.55,0.67]
[1760875566597,0.65921316,189.62,189.55,0.67]
[1760875567098,5.93296777,189.62,189.55,0.67]
[1760875567396,0.58,189.61,189.53,11.54647521]
[1760875567593,0.6592827,189.6,189.53,11.54647521]
[1760875567796,0.6592827,189.6,189.53,10.87647521]
[1760875568104,0.6592827,189.6,189.55,5.27565286]
[1760875568478,6.51359823,189.6,189.55,0.67]
[1760875568793,0.58,189.59,189.53,0.67]
[1760875569496,0.65935225,189.58,189.52,22.88]
[1760875569702,1.23935225,189.58,189.52,22.88]
[1760875569890,0.65935225,189.58,189.52,22.88]
[1760875570075,0.65935225,189.58,189.53,0.67]
[1760875570280,0.65935225,189.58,189.52,28.15624955]
[1760875570480,0.65935225,189.58,189.54,0.67]
[1760875570704,0.65935225,189.58,189.55,0.7]
[1760875571092,0.65931747,189.59,189.56,0.7]
[1760875571687,0.65931747,189.59,189.54,0.7]
[1760875571889,5.93388777,189.59,189.52,61.4]
[1760875572094,0.58,189.58,189.51,0.7]
[1760875572297,0.65938703,189.57,189.52,0.7]
[1760875572609,0.65938703,189.57,189.53,0.7]
[1760875572905,0.65938703,189.57,189.54,0.7]
[1760875573692,0.65938703,189.57,189.52,5.27641604]
[1760875573894,0.65938703,189.57,189.53,0.66]
[1760875574109,28.81449734,189.57,189.53,0.66]
[1760875575109,28.81449734,189.57,189.5,61.4]
[1760875575406,5.27565286,189.55,189.47,5.2778804]
[1760875575702,0.6594914,189.54,189.49,0.66]
[1760875577188,13.18596517,189.6,189.51,10.87647521]
[1760875577409,0.65931747,189.59,189.52,0.66]
[1760875577905,5.93385726,189.59,189.52,0.66]
[1760875578606,5.93385726,189.59,189.53,5.27620957]
[1760875578811,5.93385726,189.59,189.54,0.66]
[1760875578985,5.93385726,189.59,189.55,0.66]
[1760875579187,0.6592827,189.6,189.56,0.66]
[1760875579390,5.93357328,189.6,189.56,0.66]
[1760875580106,5.93357328,189.6,189.57,0.66]
[1760875580316,0.6592827,189.6,189.58,0.66]
[1760875580519,23.53924792,189.61,189.58,0.66]
[1760875580803,23.53924792,189.61,189.56,0.66]
[1760875581009,0.58,189.6,189.53,0.66]
[1760875581312,0.65931747,189.59,189.53,0.66]
[1760875582313,6.51364082,189.6,189.54,5.2759312]
[1760875582511,5.93364082,189.6,189.54,5.9359312]
[1760875583124,5.93364082,189.6,189.54,5.2759312]
[1760875583290,5.93364082,189.6,189.55,0.66]
[1760875583491,5.93364082,189.6,189.54,5.2759312]
[1760875583812,5.93364082,189.6,189.55,0.66]
[1760875584638,0.65921316,189.62,189.56,0.66]
[1760875584789,0.75910888,189.65,189.56,0.66]